bitfinex/quotes_ETHUSD_20251017
["timestamp","ask_amount","ask_price","bid_price","bid_amount"]
[1760721078511,3.22404546,3797.4,3797.3,0.001]
[1760721078728,2.14112879,3797.4,3797.3,0.001]
[1760721078901,2.18703632,3797.4,3797.3,0.001]
[1760721079639,2.18703632,3797.4,3797.3,0.4549]
[1760721079802,2.18703632,3797.4,3797.3,0.001]
[1760721080220,11.2387943,3797.4,3797.3,0.001]
[1760721080438,6.3199912,3797.4,3797.3,0.001]
[1760721080622,10.9083812,3797.4,3797.3,0.001]
[1760721080824,6.2204912,3797.4,3797.3,0.001]
[1760721081336,15.85835505,3797.4,3797.3,0.001]
[1760721081653,31.54460869,3797.4,3797.3,0.001]
[1760721081841,30.99699369,3797.4,3797.3,0.001]
[1760721082443,31.54460869,3797.4,3797.3,0.001]
[1760721082738,31.54460869,3797.4,3796.9,0.001]
[1760721082739,13.67159615,3797.0,3796.9,0.001]
[1760721082934,15.39959615,3797.0,3796.9,0.001]
[1760721083138,9.08185015,3797.0,3796.9,0.001]
[1760721083435,26.43290723,3797.0,3796.9,0.001]
[1760721083642,25.89108323,3797.0,3796.9,0.001]
[1760721083838,28.21319163,3797.0,3796.9,0.001]
[1760721084307,0.0071653,3796.8,3795.5,0.2198]
[1760721084506,1.728,3795.7,3795.5,0.2198]
[1760721084703,2.63461401,3795.7,3795.2,0.4666]
[1760721084933,1.728,3796.2,3795.2,0.4666]
[1760721084934,0.04592047,3795.8,3795.4,2.63472204]
[1760721085135,0.04592047,3795.8,3795.5,0.4666]
[1760721085509,0.04592047,3795.8,3795.7,2.63456016]
[1760721085910,0.04592047,3795.8,3795.7,3.67474508]
[1760721086440,4.36195493,3796.6,3795.9,2.6344042]
[1760721087134,2.63401033,3796.5,3795.7,3.10113835]
[1760721087335,2.63395763,3796.6,3795.7,0.4666]
[1760721087542,2.63395763,3796.6,3795.9,2.63440843]
[1760721087931,2.7331349,3797.1,3795.7,0.4666]
[1760721088237,1.728,3796.6,3796.0,2.63434963]
[1760721088439,2.17481615,3797.0,3796.3,2.63410824]
[1760721088622,2.17481615,3797.0,3796.3,3.10070824]
[1760721089023,0.44681615,3797.0,3796.3,0.4666]
[1760721089227,0.04591574,3796.9,3796.3,0.4666]
[1760721089422,2.63388448,3796.7,3796.1,0.2198]
[1760721089626,1.728,3796.4,3795.9,0.4666]
[1760721089824,1.728,3796.8,3796.3,0.2198]
[1760721090023,2.63392665,3796.7,3795.9,2.63437546]
[1760721090322,2.90193955,3796.6,3796.3,0.001]
[1760721090534,0.26798424,3796.6,3796.3,0.001]
[1760721090742,2.63387368,3796.7,3796.3,0.001]
[1760721090943,2.633844,3796.8,3796.3,0.4676]
[1760721091131,1.77391574,3796.9,3796.3,0.001]
[1760721091132,2.6338708,3796.7,3796.3,0.001]
[1760721091332,2.6338093,3796.8,3796.3,0.001]
[1760721091642,0.04591574,3796.9,3796.4,0.4666]
[1760721091847,2.67964602,3796.9,3796.4,0.4666]
[1760721092010,0.04591574,3796.9,3796.4,0.4666]
[1760721092337,2.67965829,3796.9,3796.4,0.4666]
[1760721092541,2.63388021,3796.7,3796.3,0.001]
[1760721092732,0.30088829,3796.8,3796.3,0.001]
[1760721092733,0.03292419,3796.6,3796.3,0.001]
[1760721093117,0.26796583,3796.8,3796.3,0.001]
[1760721093318,0.26796583,3796.8,3796.4,0.4666]
[1760721093645,0.04591574,3796.9,3796.5,3.10053692]
[1760721093835,0.04591574,3796.9,3796.6,0.4666]
[1760721094233,0.1312,3796.6,3796.3,0.001]
[1760721094452,2.63407438,3796.4,3796.3,0.001]
[1760721094752,4.36207438,3796.4,3796.3,0.001]
[1760721094919,6.63030632,3796.4,3796.3,0.001]
[1760721095120,6.67622542,3796.4,3796.3,0.001]
[1760721095317,4.36207438,3796.4,3796.3,0.001]
[1760721095725,4.4945003,3796.4,3796.3,0.001]
[1760721096284,4.36207438,3796.4,3796.3,0.001]
[1760721096444,4.46157438,3796.4,3796.3,0.001]
[1760721096619,4.4945003,3796.4,3796.3,0.001]
[1760721096934,6.76602395,3796.4,3796.3,0.001]
[1760721097139,6.73309803,3796.4,3796.3,0.001]
[1760721097729,6.63359803,3796.4,3796.3,0.001]
[1760721098528,6.73309803,3796.4,3796.3,0.001]
[1760721098957,6.63359803,3796.4,3796.3,0.001]
[1760721099159,6.73309803,3796.4,3796.3,0.001]
[1760721099562,15.00295103,3796.4,3796.3,0.001]
[1760721099734,6.63359803,3796.4,3796.3,0.001]
[1760721100054,9.69685403,3796.4,3796.3,0.001]
[1760721100461,6.63359803,3796.4,3796.3,0.001]
[1760721100659,4.36207438,3796.4,3796.3,0.001]
[1760721103050,15.4329383,3796.4,3796.3,0.001]
[1760721103249,8.57374938,3796.4,3796.3,0.001]
[1760721103457,4.36207438,3796.4,3796.3,0.001]
[1760721103852,1.728,3796.4,3796.3,0.001]
[1760721104154,1.728,3796.4,3796.3,0.4676]
[1760721104464,0.04592027,3796.5,3796.3,0.4676]
[1760721104766,0.04592027,3796.5,3796.4,3.10067438]
[1760721105063,2.63540648,3797.4,3797.1,2.63353444]
[1760721105064,0.002,3797.4,3797.1,2.63353444]
[1760721105229,0.002,3797.4,3797.0,2.63361146]
[1760721105428,0.002,3797.4,3797.3,0.2198]
[1760721105633,0.002,3797.4,3797.0,0.2198]
[1760721105832,0.1312,3797.1,3797.0,0.2198]
[1760721106041,2.76478879,3797.1,3797.0,0.2198]
[1760721106246,2.76478879,3797.1,3796.3,0.001]
[1760721106247,2.63372751,3796.9,3796.3,0.4676]
[1760721106447,1.89212246,3796.8,3796.3,0.4676]
[1760721106640,2.63391524,3796.7,3796.3,0.001]
[1760721106844,0.71591927,3797.0,3796.4,0.4666]
[1760721107042,0.002,3797.4,3796.4,0.4666]
[1760721107331,2.63351813,3797.3,3796.4,0.4666]
[1760721107542,2.63345008,3797.3,3796.5,2.63398504]
[1760721107747,2.63345008,3797.3,3796.6,0.4666]
[1760721108047,2.63345008,3797.3,3796.6,3.10053237]
[1760721108257,1.728,3797.1,3796.6,0.4666]
[1760721108458,1.77391035,3797.2,3796.6,0.4666]
[1760721108655,0.04591035,3797.2,3796.7,2.63386625]
[1760721108855,0.002,3796.9,3796.7,0.4666]
[1760721109053,0.1312,3796.7,3796.4,2.63406859]
[1760721109349,1.73,3796.9,3796.5,0.4666]
[1760721109678,0.04591038,3796.7,3796.6,0.4666]
[1760721109866,0.04591038,3796.7,3796.3,2.63513077]
[1760721110061,0.04591038,3796.7,3796.3,0.001]
[1760721110450,0.04591038,3796.7,3796.4,0.4666]
[1760721110644,2.6797935,3796.7,3796.3,0.001]
[1760721110846,2.66688549,3796.6,3796.3,0.001]
[1760721111069,1.728,3796.5,3796.3,0.001]
[1760721111291,0.03292592,3796.4,3796.3,0.001]
[1760721111477,1.77391038,3796.7,3796.3,0.001]
[1760721111681,0.04591038,3796.7,3796.3,0.4518]
[1760721111883,0.04591038,3796.7,3796.6,2.63393562]
[1760721112347,0.04591038,3796.7,3796.6,3.08473562]
[1760721112550,0.04591038,3796.7,3796.6,0.4508]
[1760721112750,0.04591038,3796.7,3796.6,3.08473562]
[1760721113552,0.04591038,3796.7,3796.6,0.4508]
[1760721114467,0.04591038,3796.7,3796.6,3.08473562]
[1760721114886,0.002,3796.9,3796.6,3.08473562]
[1760721115180,0.002,3796.9,3796.6,0.4508]
[1760721115382,0.002,3796.9,3796.7,0.4508]
[1760721115567,0.002,3796.9,3796.8,0.4508]
[1760721116763,0.1312,3796.8,3796.5,2.63398262]
[1760721116959,0.002,3796.9,3796.6,3.08472869]
[1760721117361,0.002,3796.9,3796.7,0.4508]
[1760721118059,0.002,3796.9,3796.6,2.63386785]
[1760721118264,0.1312,3796.7,3796.6,2.63386785]
[1760721118683,0.1312,3796.7,3796.6,3.08466785]
[1760721121262,0.04590853,3796.8,3796.7,2.63386625]
[1760721121465,0.04590853,3796.8,3796.7,3.08466625]
[1760721121808,0.002,3796.9,3796.8,2.63379688]
[1760721122023,0.002,3797.3,3797.2,2.63351943]
[1760721122313,0.1332,3797.8,3797.6,2.63324204]
[1760721122314,0.002,3797.8,3797.6,2.63324204]
[1760721122602,0.04589026,3799.1,3797.9,2.63298116]
[1760721122752,0.04589026,3799.1,3799.0,2.84617165]
[1760721123298,0.04589026,3799.1,3798.5,0.4632]
[1760721123510,0.04589026,3799.1,3798.0,0.2139]
[1760721123666,0.04589026,3799.1,3796.4,2.6340375]
[1760721123667,2.27215,3798.6,3796.9,0.4632]
[1760721123865,16.12601106,3799.0,3796.9,0.4632]
[1760721123866,2.63298298,3798.0,3796.9,0.4632]
[1760721124056,2.63298298,3798.0,3797.0,2.6336398]
[1760721124057,2.63315315,3797.8,3797.0,2.6336398]
[1760721124254,2.63315315,3797.8,3796.9,3.09686205]
[1760721124255,2.63317302,3797.7,3796.9,3.09686205]
[1760721124453,0.04590214,3797.8,3796.7,0.2139]
[1760721124454,0.04590214,3797.8,3796.7,2.84771906]
[1760721124683,0.04590214,3797.8,3797.7,2.6331727]
[1760721124868,0.04590214,3797.8,3797.3,2.6333845]
[1760721125069,0.04590214,3797.8,3797.4,3.09651354]
[1760721125272,0.04590214,3797.8,3797.5,2.63331138]
[1760721125458,0.1002,3799.5,3797.6,0.01317569]
[1760721125657,0.00630583,3799.9,3797.8,2.63310337]
[1760721125856,2.63796394,3799.9,3797.9,0.4632]
[1760721126061,0.1498,3800.0,3798.1,2.63289539]
[1760721126358,0.1498,3800.0,3798.0,0.30963034]
[1760721126359,0.002,3799.1,3798.5,2.63259279]
[1760721126478,0.002,3799.1,3798.2,0.6771]
[1760721126899,0.101,3799.1,3798.0,2.63293606]
[1760721127105,2.63246803,3798.8,3798.1,2.63289277]
[1760721127313,1.728,3798.5,3797.3,0.33104845]
[1760721127601,0.0996,3798.7,3797.4,2.633316]
[1760721127775,1.8902,3798.9,3797.2,3.09667133]
[1760721127776,0.0996,3798.6,3797.2,3.09667133]
[1760721127976,0.04590091,3798.4,3797.2,0.4632]
[1760721128180,1.728,3798.2,3797.2,2.63351943]
[1760721128406,2.63289539,3798.1,3797.2,0.4632]
[1760721128574,2.63297314,3798.0,3797.2,0.4632]
[1760721128775,0.71391749,3798.1,3797.2,0.4632]
[1760721129111,2.63296918,3798.0,3797.3,2.63343017]
[1760721129413,0.0459015,3797.9,3797.2,0.4632]
[1760721129719,0.0459015,3797.9,3797.5,2.63325798]
[1760721130000,0.0459015,3797.9,3797.7,2.63316554]
[1760721130514,0.0459015,3797.9,3797.8,3.09630337]
[1760721130699,0.0459015,3797.9,3797.8,3.66925731]
[1760721132215,0.002,3799.1,3798.6,2.63254883]
[1760721132384,0.002,3799.1,3799.0,2.84617165]
[1760721132783,0.002,3799.1,3799.0,3.30937165]
[1760721133385,0.002,3799.1,3799.0,3.90354984]
[1760721133853,0.002,3799.1,3799.0,3.91670127]
[1760721134111,0.002,3799.1,3799.0,3.90354984]
[1760721134508,0.002,3799.1,3799.0,3.44034984]
[1760721134704,0.002,3799.1,3799.0,3.90354984]
[1760721135387,0.002,3799.1,3799.0,1.27127819]
[1760721135587,0.002,3799.1,3798.0,1.728]
[1760721135588,0.002,3799.1,3798.6,0.2139]
[1760721135782,0.1312,3799.0,3798.6,0.2139]
[1760721135987,0.1312,3799.0,3798.9,2.63234094]
[1760721136187,0.1312,3799.0,3798.9,3.09554094]
[1760721136387,0.1312,3799.0,3798.6,0.2139]
[1760721136587,0.1312,3799.0,3798.7,2.63247114]
[1760721137087,0.1312,3799.0,3798.9,2.63234094]
[1760721137286,0.002,3799.1,3799.0,2.63227165]
[1760721137637,0.002,3799.1,3799.0,3.09547165]
[1760721137809,0.002,3799.1,3799.0,2.63227165]
[1760721138440,0.1332,3799.1,3799.0,2.63227165]
[1760721138845,0.1332,3799.1,3798.8,2.63234118]
[1760721139043,0.1332,3799.1,3799.0,2.63227165]
[1760721139338,0.002,3799.1,3799.0,2.63227165]
[1760721139938,0.1312,3799.0,3798.8,0.6026618]
[1760721140138,0.1312,3799.0,3798.7,2.63245839]
[1760721140337,0.1312,3799.0,3798.6,0.2139]
[1760721140707,0.1312,3799.0,3798.8,2.63241023]
[1760721140937,0.1312,3799.0,3798.9,2.63234094]
[1760721142842,0.002,3799.1,3799.0,2.63227165]
[1760721143041,0.002,3799.1,3799.0,3.91356475]
[1760721143746,0.002,3799.1,3799.0,3.46786475]
[1760721143910,0.002,3799.1,3798.6,0.2139]
[1760721144113,0.1332,3799.1,3799.0,2.63227165]
[1760721144750,0.1332,3799.1,3798.9,2.63233433]
[1760721144925,0.1332,3799.1,3799.0,2.63227165]
[1760721145131,0.1332,3799.1,3798.6,0.2139]
[1760721145334,0.1332,3799.1,3799.0,2.63227165]
[1760721146568,0.1332,3799.1,3799.0,3.07797165]
[1760721147333,0.002,3799.1,3799.0,3.07797165]
[1760721147931,0.002,3799.1,3799.0,3.09112308]
[1760721148134,0.002,3799.1,3799.0,3.07797165]
[1760721148335,0.002,3799.1,3799.0,3.64900414]
[1760721148967,0.002,3799.1,3799.0,3.66215557]
[1760721149173,0.002,3799.1,3799.0,3.64900414]
[1760721149363,0.002,3799.1,3799.0,3.66215557]
[1760721149569,0.002,3799.9,3799.8,2.63171745]
[1760721149764,0.002,3799.9,3799.8,3.15806912]
[1760721150174,0.002,3799.9,3799.8,3.6169067]
[1760721150479,0.002,3799.9,3799.8,3.60376912]
[1760721151671,0.04586305,3801.2,3801.1,2.63081739]
[1760721151971,2.63004495,3802.3,3801.1,0.2161]
[1760721152139,0.04585399,3801.7,3801.6,2.63047138]
[1760721152334,0.1016,3802.1,3801.4,2.63060904]
[1760721152696,0.04585363,3801.9,3800.7,0.6618]
[1760721153003,0.04585363,3801.9,3800.5,2.63123273]
[1760721153004,1.728,3801.7,3800.5,2.63123273]
[1760721153296,2.73194308,3801.8,3801.1,2.63080205]
[1760721153501,0.1016,3801.8,3800.6,0.30769327]
[1760721153702,1.728,3801.8,3801.2,2.63072449]
[1760721153905,1.77385363,3801.9,3800.7,0.4457]
[1760721154198,0.04585363,3801.9,3801.6,2.6304663]
[1760721154399,0.04585363,3801.9,3801.5,2.63054057]
[1760721154599,0.04585363,3801.9,3801.6,2.63047138]
[1760721154799,0.04585363,3801.9,3801.2,2.63074818]
[1760721154968,0.04585363,3801.9,3801.8,2.630333]
[1760721155400,0.04585363,3801.9,3801.3,0.33056549]
[1760721155578,0.04585363,3801.9,3801.4,2.63056234]
[1760721155897,0.04585363,3801.9,3801.5,2.63053151]
[1760721156097,0.14745363,3801.9,3801.5,2.63053151]
[1760721156297,0.04585363,3801.9,3801.6,2.63045132]
[1760721156596,0.04585363,3801.9,3801.7,2.63038855]
[1760721156797,0.04585363,3801.9,3801.6,2.63047108]
[1760721156999,0.04585363,3801.9,3801.1,0.4457]
[1760721157197,4.35806506,3802.2,3801.5,2.63047639]
[1760721157373,0.1312,3801.8,3801.5,2.63047639]
[1760721157927,2.76158057,3801.8,3801.2,0.1312]
[1760721158224,2.76490925,3801.7,3800.2,0.4457]
[1760721158408,0.13448002,3801.7,3800.2,0.4457]
[1760721158609,2.63060528,3801.5,3800.8,2.6309667]
[1760721158813,2.90713358,3801.4,3800.8,2.6309667]
[1760721159191,0.27650853,3801.4,3800.2,0.4457]
[1760721159395,1.8296,3801.6,3800.3,0.4457]
[1760721159593,1.8296,3801.6,3801.0,2.63083295]
[1760721159836,2.63027324,3801.9,3801.2,2.63068852]
[1760721160003,2.63024063,3802.0,3801.3,2.63067795]
[1760721160188,2.63024063,3802.0,3801.1,0.2161]
[1760721160189,0.46489206,3801.9,3801.1,2.86002524]
[1760721160394,2.86507855,3802.1,3801.4,2.63060645]
[1760721160702,1.728,3801.8,3801.1,0.2161]
[1760721160922,0.002,3801.9,3801.6,2.63041238]
[1760721161090,0.002,3801.9,3801.2,0.4457]
[1760721161289,0.002,3801.9,3801.7,2.63035465]
[1760721161519,0.04785384,3801.9,3801.6,2.63044902]
[1760721161708,0.04785384,3801.9,3801.5,2.63049583]
[1760721161915,0.04785384,3801.9,3801.3,2.63067897]
[1760721161916,0.04785384,3801.9,3801.3,2.63063634]
[1760721162111,0.1016,3801.8,3800.7,0.6618]
[1760721162293,0.1016,3801.8,3801.3,2.63067436]
[1760721162488,0.48844525,3801.9,3801.0,0.4457]
[1760721163047,3.11875164,3801.9,3801.2,2.63069436]
[1760721163192,0.58504927,3801.8,3801.2,2.63074723]
[1760721163397,2.67813549,3801.9,3801.3,2.6306549]
[1760721163617,2.63034939,3801.8,3801.1,2.63075083]
[1760721163796,1.728,3801.7,3801.0,2.63087585]
[1760721164124,1.77585384,3801.9,3800.7,0.6618]
[1760721164336,0.04785384,3801.9,3801.4,2.63055813]
[1760721164492,0.48845017,3801.9,3801.6,2.63040682]
[1760721164695,0.04785384,3801.9,3801.6,2.63040682]
[1760721165107,0.04785384,3801.9,3801.3,0.4457]
[1760721165626,0.04785384,3801.9,3801.5,2.63053934]
[1760721165923,0.04785384,3801.9,3801.4,2.63059072]
[1760721166503,0.04785384,3801.9,3800.9,0.4457]
[1760721166504,1.728,3801.8,3800.9,0.4457]
[1760721166711,0.18774538,3801.8,3800.9,0.4457]
[1760721166910,1.728,3801.6,3801.0,2.63082797]
[1760721167112,0.18774538,3801.8,3801.1,2.63080684]
[1760721167423,0.002,3801.9,3801.5,2.63051696]
[1760721167628,0.04585672,3801.7,3801.2,2.63070173]
[1760721167841,0.04585672,3801.7,3800.9,2.63094665]
[1760721168023,0.1312,3801.4,3801.1,2.63075212]
[1760721168226,0.1312,3801.4,3801.2,2.63074308]
[1760721168605,0.1312,3801.4,3800.8,0.5769]
[1760721168806,0.1312,3801.4,3801.0,2.63083655]
[1760721169005,0.1312,3801.4,3800.8,0.5769]
[1760721169240,0.1312,3801.4,3801.3,2.63067897]
[1760721169438,0.1312,3801.4,3800.8,0.5769]
[1760721169439,0.1312,3801.4,3801.2,2.630687]
[1760721169744,0.1312,3801.4,3801.3,0.4457]
[1760721169917,0.1312,3801.4,3801.3,3.07637897]
[1760721170435,0.1312,3801.4,3801.3,2.63067897]
[1760721171007,0.1312,3801.4,3801.2,2.63068228]
[1760721171205,0.1312,3801.4,3801.2,3.07638228]
[1760721171834,0.1312,3801.4,3800.8,0.1312]
[1760721171835,0.1312,3801.4,3800.9,0.4323]
[1760721172037,0.1312,3801.4,3801.2,2.63072935]
[1760721172620,0.17705807,3801.4,3801.2,2.63072935]
[1760721173545,0.17705807,3801.4,3801.3,2.63067897]
[1760721173930,0.17705807,3801.4,3801.1,2.6307693]
[1760721174141,0.17705807,3801.4,3801.2,2.63073876]
[1760721174810,0.17705807,3801.4,3801.1,2.63081739]
[1760721175010,0.17705807,3801.4,3801.3,2.63067897]
[1760721175706,0.17705807,3801.4,3801.2,2.63072108]
[1760721176315,0.17705807,3801.4,3801.3,2.63067897]
[1760721177231,0.17705807,3801.4,3801.2,2.63070524]
[1760721177544,0.17705807,3801.4,3801.2,2.63070395]
[1760721178315,0.17905807,3801.4,3801.3,2.63067897]
[1760721178848,0.17905807,3801.4,3801.2,2.63072681]
[1760721179010,0.17905807,3801.4,3801.3,2.63067897]
[1760721179827,0.17905807,3801.4,3801.3,3.06297897]
[1760721180426,0.17905807,3801.4,3801.3,2.63067897]
[1760721181111,0.17905807,3801.4,3801.3,3.06297897]
[1760721181517,0.17905807,3801.4,3801.3,2.63067897]
[1760721182218,0.17905807,3801.4,3801.3,3.09347897]
[1760721182419,0.17905807,3801.4,3801.3,2.63067897]
[1760721182634,0.04785807,3801.4,3801.3,3.1699347]
[1760721182849,0.04785807,3801.4,3801.3,3.7639347]
[1760721183060,0.002,3801.4,3801.3,3.7639347]
[1760721183558,0.002,3801.4,3801.3,3.75082308]
[1760721184072,0.002,3801.4,3801.3,3.7639347]
[1760721184367,0.002,3801.4,3801.3,3.75082308]
[1760721184749,0.002,3801.4,3801.3,3.7639347]
[1760721184953,0.002,3801.4,3801.3,5.3607347]
[1760721185171,0.002,3801.9,3801.3,5.3607347]
[1760721185172,0.002,3801.9,3801.8,2.630333]
[1760721185394,0.002,3801.9,3801.8,3.56375959]
[1760721185670,0.002,3801.9,3801.8,4.01345662]
[1760721186176,0.1312,3803.2,3802.2,2.63005628]
[1760721186687,0.1002,3803.3,3802.2,3.22405628]
[1760721186974,0.1312,3802.9,3802.2,3.23715233]
[1760721187273,0.1312,3803.2,3802.2,4.09615195]
[1760721187475,0.002,3803.4,3802.2,4.09615195]
[1760721187476,0.1483,3802.6,3802.2,2.63005628]
[1760721187775,0.04583692,3803.0,3802.2,3.09285628]
[1760721187963,0.1478,3802.9,3802.2,3.09285628]
[1760721188344,0.1478,3802.9,3802.2,2.63005628]
[1760721188546,0.1036,3802.7,3802.2,2.63005628]
[1760721189146,0.002,3802.7,3802.2,2.63005628]
[1760721189842,0.002,3802.7,3802.2,3.09285628]
[1760721190283,0.002,3802.7,3802.2,4.83395233]
[1760721190487,0.002,3802.7,3802.2,5.58960901]
[1760721191854,0.002,3803.4,3803.3,2.62929561]
[1760721192056,0.002,3803.4,3803.3,4.35729561]
[1760721192253,0.002,3803.4,3803.3,3.09209561]
[1760721195470,0.002,3803.4,3803.3,3.10517264]
[1760721195666,0.002,3803.4,3803.3,3.86069073]
[1760721195890,0.002,3803.4,3803.3,3.39789073]
[1760721196094,0.002,3803.4,3803.3,2.62929561]
[1760721196467,0.002,3803.4,3803.3,3.09209561]
[1760721196665,0.002,3803.4,3803.3,3.10517264]
[1760721196910,0.002,3803.4,3803.3,3.09209561]
[1760721197499,0.002,3803.4,3803.3,3.23637264]
[1760721197674,0.002,3803.4,3803.3,3.82294776]
[1760721198598,0.002,3804.8,3803.9,2.62888088]
[1760721198803,1e-08,3804.8,3804.3,2.85200447]
[1760721199001,1e-08,3804.8,3804.7,4.35632812]
[1760721199182,1e-08,3804.8,3804.7,4.36938097]
[1760721199376,1e-08,3804.8,3804.7,5.57824049]
[1760721199580,1e-08,3804.8,3804.7,11.83611364]
[1760721201909,1e-08,3804.8,3804.7,14.24170464]
[1760721202637,1e-08,3804.8,3804.7,8.28918764]
[1760721202780,1e-08,3804.8,3804.7,10.71118764]
[1760721204425,1e-08,3804.8,3804.7,23.55786264]
[1760721205406,1e-08,3804.8,3804.7,22.68990464]
[1760721205783,0.1582,3807.0,3806.9,2.62680921]
[1760721206019,0.1582,3807.0,3806.9,2.88949013]
[1760721206217,0.0995,3807.3,3807.2,2.62660222]
[1760721206522,1.728,3808.2,3807.5,2.62633885]
[1760721206724,4.35378148,3808.4,3807.4,2.62645362]
[1760721207014,4.35378148,3808.4,3806.3,3.06621451]
[1760721207015,1.8915,3808.0,3806.3,2.62721451]
[1760721207308,0.1001,3807.9,3806.4,0.30662145]
[1760721207515,0.1001,3807.8,3806.4,0.30662145]
[1760721207728,0.1001,3807.7,3806.4,0.30662145]
[1760721207912,0.1001,3807.6,3807.1,2.62665601]
[1760721208113,0.1001,3807.5,3807.1,0.01300866]
[1760721208322,0.1635,3808.0,3807.5,2.62638196]
[1760721208504,0.1635,3808.0,3806.5,0.01300935]
[1760721208505,0.61523653,3808.0,3806.6,2.62701623]
[1760721208689,0.1312,3807.9,3807.6,2.62626294]
[1760721208894,0.1312,3807.9,3807.3,0.1312]
[1760721208895,0.1001,3807.8,3807.7,2.62625732]
[1760721209533,0.20927834,3808.0,3807.8,2.62618835]
[1760721209747,0.20927834,3808.0,3807.9,2.6391177]
[1760721209911,0.1469,3809.1,3807.9,0.55264823]
[1760721210227,0.1469,3809.1,3807.8,2.62615021]
[1760721210228,0.1312,3808.7,3808.5,2.62570324]
[1760721210408,0.04576966,3808.9,3808.6,0.01298625]
[1760721210594,0.04576966,3808.9,3808.8,2.62549884]
[1760721210795,0.04576966,3808.9,3808.6,2.63859974]
[1760721211130,0.04576966,3808.9,3808.8,2.62549884]
[1760721211316,0.04576966,3808.9,3808.8,2.63848096]
[1760721211742,0.1312,3809.4,3809.3,2.62515422]
[1760721212030,0.0457589,3809.8,3809.5,2.62497079]
[1760721212238,0.1011,3809.7,3808.8,0.53952945]
[1760721212392,0.1011,3809.7,3808.4,0.439]
[1760721212592,0.1011,3809.7,3808.6,2.62563671]
[1760721212822,0.1011,3809.7,3808.4,0.439]
[1760721213225,0.0457589,3809.8,3808.9,2.62542991]
[1760721213426,0.0457589,3809.8,3809.5,2.62495556]
[1760721213605,0.0457589,3809.8,3809.6,0.01296833]
[1760721213813,0.0457589,3809.8,3809.7,2.62487859]
[1760721214053,0.0457589,3809.8,3809.4,2.62506445]
[1760721214221,0.1011,3809.7,3808.7,2.62556709]
[1760721214419,0.0457589,3809.8,3808.2,4.35388826]
[1760721214636,0.1011,3809.6,3809.2,2.62517816]
[1760721214955,0.1011,3809.5,3808.3,3.06481436]
[1760721215107,0.1011,3809.5,3809.1,2.62522517]
[1760721215308,0.1011,3809.5,3809.2,2.62520781]
[1760721215508,0.1011,3809.5,3809.0,0.01297452]
[1760721215741,0.0457589,3809.8,3809.7,2.62487859]
[1760721216109,0.1468589,3809.8,3808.9,0.2263]
[1760721216310,0.1468589,3809.8,3809.5,2.62496628]
[1760721216613,0.1011,3809.7,3809.0,2.62536098]
[1760721216824,0.1011,3809.7,3809.6,2.6249475]
[1760721217456,0.0457589,3809.8,3808.9,0.2263]
[1760721217629,0.0457589,3809.8,3809.5,2.62500229]
[1760721217829,0.1011,3809.7,3809.4,2.62507318]
[1760721218140,0.1011,3809.7,3809.5,2.62501067]
[1760721218318,0.1011,3809.6,3809.1,2.62526037]
[1760721218516,0.0457589,3809.8,3808.4,0.2263]
[1760721218517,0.1011,3809.5,3808.9,2.62540547]
[1760721218734,0.1011,3809.5,3809.1,2.62523787]
[1760721219318,0.1011,3809.5,3809.4,2.62508531]
[1760721219611,0.0457589,3809.8,3809.4,2.62508531]
[1760721219860,0.4397656,3809.8,3809.5,0.01296936]
[1760721220058,0.4397656,3809.8,3809.0,2.62535996]
[1760721220217,0.0457589,3809.8,3809.0,2.62533691]
[1760721220445,0.1011,3809.7,3809.0,2.62533691]
[1760721220643,0.1011,3809.6,3809.0,2.62533691]
[1760721220852,0.1011,3809.6,3808.8,2.62549825]
[1760721221052,0.1011,3809.6,3808.9,2.6254227]
[1760721221053,0.37826915,3809.6,3808.9,2.6254227]
[1760721221252,0.37826915,3809.6,3808.4,0.2263]
[1760721221462,0.0457589,3809.8,3809.5,2.62496748]
[1760721221985,0.1312,3809.5,3809.4,2.62506113]
[1760721222143,0.1312,3809.5,3809.3,2.62513989]
[1760721222345,0.1312,3809.5,3809.3,2.62515209]
[1760721222553,0.1312,3809.5,3809.1,2.62528166]
[1760721222852,0.1312,3809.5,3809.0,2.62536098]
[1760721223069,0.2323,3809.5,3809.2,2.62522065]
[1760721223275,0.2323,3809.5,3806.7,2.62693178]
[1760721223276,0.1011,3809.4,3807.1,0.2263]
[1760721223458,0.1011,3809.4,3806.8,0.3575]
[1760721223459,18.20086848,3808.4,3806.8,0.3575]
[1760721223647,18.20086848,3808.4,3806.9,2.62680921]
[1760721223648,0.1312,3807.4,3806.9,2.62680921]
[1760721223843,0.1312,3807.4,3806.8,0.1312]
[1760721224181,0.1312,3807.4,3806.8,2.62687821]
[1760721224182,0.1557,3806.9,3806.8,2.62687821]
[1760721224386,0.1557,3806.9,3806.6,2.62696531]
[1760721224547,0.1312,3806.7,3806.1,0.1312]
[1760721224985,0.1312,3806.7,3806.6,2.62701623]
[1760721226457,0.1312,3806.7,3806.1,0.1312]
[1760721226664,0.1324377,3806.6,3805.1,3.06705182]
[1760721226859,1.68592311,3806.6,3805.1,0.439]
[1760721227177,1.728,3806.3,3805.3,2.62784747]
[1760721227365,3.31432311,3806.6,3805.8,2.62755634]
[1760721227563,3.31432311,3806.6,3805.8,2.62756125]
[1760721227564,0.0996,3806.6,3805.8,2.62756125]
[1760721227765,0.0996,3806.6,3805.0,0.6653]
[1760721227982,2.62714224,3806.5,3805.7,2.62757954]
[1760721228180,2.72662927,3806.6,3805.1,2.62805182]
[1760721228374,2.72662927,3806.6,3805.0,0.6653]
[1760721228375,0.72372111,3806.5,3805.0,0.6653]
[1760721228570,2.62726218,3806.3,3805.0,0.6653]
[1760721228759,1.728,3806.3,3805.4,2.62779844]
[1760721228960,2.7596005,3806.4,3805.0,0.6653]
[1760721228961,0.13243942,3806.4,3805.0,0.6653]
[1760721229291,1.8276,3806.3,3805.1,0.23933833]
[1760721229491,2.00298501,3806.2,3805.1,0.2263]
[1760721229690,2.00298501,3806.2,3805.3,2.62789765]
[1760721230063,1.728,3806.1,3805.4,2.6278326]
[1760721230268,2.00298501,3806.2,3805.6,2.62765678]
[1760721230476,0.51878703,3806.1,3805.6,2.62765678]